bitfinex/quotes_ETHUSD_20251118
["timestamp","ask_amount","ask_price","bid_price","bid_amount"]
[1763505410103,0.002,3134.1,3134.0,0.78733507]
[1763505410600,0.002,3134.1,3134.0,1.26233507]
[1763505411872,0.002,3134.1,3134.0,0.78733507]
[1763505412598,0.002,3134.4,3134.0,0.78733507]
[1763505412813,0.4612,3134.4,3134.0,0.78733507]
[1763505412992,0.4612,3134.4,3134.0,0.65943801]
[1763505413311,0.4612,3134.4,3134.1,0.4612]
[1763505413509,0.4612,3134.4,3134.2,0.1595638]
[1763505413919,0.0899,3134.3,3134.2,0.1595638]
[1763505414578,0.0899,3134.3,3134.2,0.6207638]
[1763505416735,0.0899,3134.3,3134.2,0.4612]
[1763505418702,0.5454,3134.3,3134.2,0.4612]
[1763505419028,0.0899,3134.3,3134.2,0.4612]
[1763505419419,0.5454,3134.3,3134.2,0.4612]
[1763505419935,0.0899,3134.3,3134.2,0.4612]
[1763505420595,0.5454,3134.3,3134.2,0.4612]
[1763505421095,0.5454,3134.3,3133.6,0.001]
[1763505421295,0.5454,3134.3,3133.7,0.475]
[1763505424239,0.5454,3134.3,3133.7,0.63520272]
[1763505424240,0.1913,3133.8,3133.7,0.63520272]
[1763505424420,0.1913,3133.8,3133.7,0.475]
[1763505426713,0.6468,3133.8,3133.7,0.475]
[1763505427133,0.002,3134.4,3133.7,0.9536]
[1763505427338,0.4555,3134.3,3133.7,0.9536]
[1763505427636,0.4555,3134.3,3133.7,0.4786]
[1763505427806,0.4555,3134.3,3133.8,0.4555]
[1763505428947,0.002,3134.1,3133.8,0.4555]
[1763505429738,0.002,3134.1,3134.0,0.4786]
[1763505430109,0.002,3134.1,3133.8,0.9186]
[1763505430338,0.002,3134.1,3133.9,0.18255926]
[1763505430535,0.002,3134.1,3133.6,0.001]
[1763505430738,0.002,3134.1,3133.7,0.4631]
[1763505430975,0.002,3134.1,3134.0,0.4575]
[1763505431367,0.0955,3134.1,3134.0,0.4575]
[1763505433762,0.5474,3134.1,3134.0,0.4575]
[1763505433994,0.5474,3134.1,3133.6,0.001]
[1763505434275,0.5474,3134.1,3133.7,0.4631]
[1763505434640,0.0955,3134.1,3133.7,0.4631]
[1763505434840,0.0955,3134.1,3133.7,0.9262]
[1763505435369,0.0955,3134.1,3133.7,0.4631]
[1763505435555,0.0955,3134.1,3133.8,0.4519]
[1763505437074,0.0045,3133.9,3133.8,0.4519]
[1763505438280,0.4575,3134.1,3133.8,0.4519]
[1763505439147,0.0935,3133.9,3133.8,0.4519]
[1763505439343,0.4575,3134.1,3133.8,0.4519]
[1763505440787,0.0935,3133.9,3133.8,0.4519]
[1763505442853,0.4575,3134.1,3133.8,0.4519]
[1763505443467,0.002,3134.1,3133.8,0.4519]
[1763505444178,0.4521,3134.1,3133.8,0.4519]
[1763505447106,0.4521,3134.1,3133.8,0.4529]
[1763505447611,0.0989,3133.9,3133.8,0.001]
[1763505448615,0.7325,3133.9,3133.8,0.001]
[1763505457028,0.7325,3133.9,3133.8,0.4531]
[1763505458623,0.7325,3133.9,3133.8,0.001]
[1763505468047,0.2859,3133.9,3133.8,0.001]
[1763505468248,0.7325,3133.9,3133.8,0.001]
[1763505481209,0.5463,3133.9,3133.8,0.001]
[1763505484130,0.0647,3133.9,3133.8,0.001]
[1763505484294,0.5463,3133.9,3133.8,0.001]
[1763505486386,0.4935,3133.9,3133.8,0.001]
[1763505489515,0.5507,3133.9,3133.8,0.001]
[1763505489813,0.4935,3133.9,3133.8,0.001]
[1763505490005,0.002,3134.1,3133.8,0.001]
[1763505490400,0.4832,3134.1,3133.8,0.001]
[1763505490947,0.2541,3133.9,3133.8,0.001]
[1763505491305,0.7323,3133.9,3133.8,0.001]
[1763505492853,0.2541,3133.9,3133.8,0.001]
[1763505493060,0.0746,3133.9,3133.8,0.001]
[1763505504170,0.2616,3133.9,3133.8,0.001]
[1763505504324,0.7302,3133.9,3133.8,0.001]
[1763505508224,1.135704,3133.9,3133.8,0.001]
[1763505508460,0.7302,3133.9,3133.8,0.001]
[1763505520097,0.7323,3133.9,3133.8,0.001]
[1763505524312,0.2616,3133.9,3133.8,0.001]
[1763505526221,0.7323,3133.9,3133.8,0.001]
[1763505526719,0.2616,3133.9,3133.8,0.001]
[1763505527822,0.7323,3133.9,3133.8,0.001]
[1763505528716,0.2616,3133.9,3133.8,0.001]
[1763505529298,0.42572926,3133.9,3133.8,0.001]
[1763505530621,0.16412926,3133.9,3133.8,0.001]
[1763505530823,0.0628,3133.9,3133.8,0.001]
[1763505533420,0.2498,3133.9,3133.8,0.001]
[1763505533620,0.7322,3133.9,3133.8,0.001]
[1763505534402,2.04469664,3133.9,3133.8,0.001]
[1763505534603,4.2633546,3133.9,3133.8,0.001]
[1763505534926,5.31544495,3133.9,3133.8,0.001]
[1763505539353,0.405504,3133.8,3133.4,0.001]
[1763505539559,8.26522369,3133.5,3133.4,0.001]
[1763505539852,8.56488165,3133.5,3133.4,0.001]
[1763505540031,9.90796982,3133.5,3133.4,0.001]
[1763505540354,10.03597862,3133.5,3133.4,0.001]
[1763505547967,1.919,3133.3,3132.5,0.001]
[1763505548260,3.99252539,3133.2,3132.5,0.001]
[1763505548452,3.6028546,3133.2,3132.5,0.001]
[1763505548657,4.20319085,3133.2,3132.5,0.001]
[1763505548836,0.405504,3133.0,3132.5,0.001]
[1763505549029,3.9823546,3133.0,3132.5,0.001]
[1763505549237,5.58153909,3133.0,3132.5,0.001]
[1763505549436,2.324504,3132.8,3132.5,0.001]
[1763505549770,6.41798158,3132.6,3132.5,0.001]
[1763505550062,8.33698158,3132.6,3132.5,0.001]
[1763505550270,8.80528158,3132.6,3132.5,0.001]
[1763505550455,9.69861361,3132.6,3132.5,0.001]
[1763505551271,9.82666544,3132.6,3132.5,0.001]
[1763505551568,10.12475333,3132.6,3132.5,0.001]
[1763505552971,12.31965933,3132.6,3132.5,0.001]
[1763505554380,8.10418158,3132.3,3132.2,0.001]
[1763505554675,9.009999,3132.3,3132.2,0.001]
[1763505554865,3.30379664,3132.2,3131.8,0.001]
[1763505555067,2.324504,3131.9,3131.8,0.001]
[1763505555246,8.36078158,3131.9,3131.8,0.001]
[1763505555442,8.83308158,3131.9,3131.8,0.001]
[1763505555777,3.23149664,3131.8,3131.6,0.001]
[1763505555965,3.70979664,3131.8,3131.6,0.001]
[1763505557886,3.77479664,3131.7,3131.6,0.001]
[1763505558885,2.324504,3131.5,3131.4,0.001]
[1763505559197,8.11088158,3131.5,3130.5,0.001]
[1763505559375,6.25558158,3130.6,3130.5,0.001]
[1763505560057,6.44228158,3130.6,3130.5,0.001]
[1763505560259,7.13373974,3130.6,3130.5,0.001]
[1763505560461,7.60603974,3130.6,3130.5,0.001]
[1763505562972,7.16183974,3130.6,3130.5,0.001]
[1763505563884,7.60873974,3130.6,3130.5,0.001]
[1763505564086,12.48142468,3130.6,3130.5,0.001]
[1763505564259,14.7674902,3130.6,3130.5,0.001]
[1763505567403,14.7674902,3130.6,3130.2,0.001]
[1763505567404,2.324504,3130.3,3130.2,0.001]
[1763505567603,8.10868158,3130.3,3130.2,0.001]
[1763505567902,8.55918158,3130.3,3130.2,0.001]
[1763505569073,8.9262471,3130.3,3130.2,0.001]
[1763505569500,2.325504,3129.9,3129.7,0.001]
[1763505569687,8.55098158,3129.8,3129.7,0.001]
[1763505569890,9.0202471,3129.8,3129.7,0.001]
[1763505570105,15.34203919,3129.8,3129.7,0.001]
[1763505570268,1.31249664,3128.7,3128.6,0.462]
[1763505570600,1.9310148,3128.7,3128.6,0.462]
[1763505570903,2.3930148,3128.7,3128.6,0.4933]
[1763505571309,1.48602216,3128.7,3128.6,0.9553]
[1763505571477,1.77449664,3128.7,3128.6,0.9553]
[1763505572402,0.462,3128.7,3128.6,0.9553]
[1763505572583,0.90699264,3129.0,3128.6,0.9553]
[1763505572785,1.31249664,3128.7,3128.2,0.1859]
[1763505573124,4.87268494,3129.5,3128.2,0.1859]
[1763505573125,1.31249664,3128.4,3128.3,0.462]
[1763505573601,1.9310148,3128.4,3128.3,0.9553]
[1763505574979,1.9310148,3128.4,3128.3,0.4933]
[1763505575182,1.9310148,3128.4,3128.3,0.9553]
[1763505576316,1.9310148,3128.4,3128.3,0.4933]
[1763505578522,2.6044148,3128.4,3128.3,0.4933]
[1763505583021,1.69742216,3128.4,3128.3,0.9808]
[1763505583190,1.078904,3128.4,3128.3,0.9808]
[1763505584294,4.87268494,3129.2,3128.3,0.9808]
[1763505584507,0.96119495,3129.3,3129.1,0.6523]
[1763505584740,0.96119495,3129.3,3129.1,0.1859]
[1763505584962,1.36669895,3129.3,3129.2,0.9539]
[1763505585738,0.96119495,3129.3,3129.2,0.9539]
[1763505585909,1.36669895,3129.3,3129.2,0.9539]
[1763505586241,0.90699264,3129.4,3129.2,0.9539]
[1763505586451,0.90699264,3129.4,3129.3,0.9539]
[1763505586452,1.31249664,3129.4,3129.3,0.9539]
[1763505586614,0.90699264,3129.4,3129.3,0.9539]
[1763505586817,1.31249664,3129.4,3129.3,0.9539]
[1763505587024,2.0264048,3129.4,3129.3,0.9539]
[1763505588341,2.32416086,3129.4,3129.3,0.9539]
[1763505588932,2.0264048,3129.4,3129.3,0.9539]
[1763505589342,2.32429437,3129.4,3129.3,0.9539]
[1763505590839,1.31249664,3129.4,3129.3,0.9539]
[1763505591342,1.61070782,3129.4,3129.3,0.9539]
[1763505592538,1.61082698,3129.4,3129.3,0.9539]
[1763505592841,1.31249664,3129.4,3129.3,0.9539]
[1763505593342,1.61092634,3129.4,3129.3,0.9539]
[1763505593549,2.25928747,3129.4,3129.3,0.9539]
[1763505597543,4.17828747,3129.4,3129.3,0.9539]
[1763505597850,2.25928747,3129.4,3129.3,0.9539]
[1763505600195,1.61092634,3129.4,3129.3,0.9539]
[1763505600476,0.002,3129.7,3129.3,0.9539]
[1763505600684,0.002,3129.7,3129.6,0.4664]
[1763505601051,0.002,3129.7,3129.6,0.9539]
[1763505601639,0.002,3130.1,3129.6,0.9539]
[1763505601837,0.002,3130.1,3130.0,0.4664]
[1763505602275,0.002,3130.1,3130.0,0.9539]
[1763505604353,0.002,3130.1,3130.0,1.53655849]
[1763505610383,0.0006,3130.4,3130.0,1.53655849]
[1763505610682,0.0006,3130.4,3130.3,5.54108494]
[1763505610892,0.0006,3130.4,3130.3,0.6684]
[1763505611091,0.002,3130.8,3130.3,0.6684]
[1763505611092,1.31449664,3132.1,3130.4,0.4992]
[1763505611281,0.69373755,3132.0,3130.4,0.9681]
[1763505611995,0.69373755,3132.0,3130.5,0.4992]
[1763505613182,0.405504,3131.9,3130.5,0.4992]
[1763505613857,1.31249664,3131.5,3130.3,0.1995]
[1763505614056,1.31249664,3131.5,3130.4,0.4992]
[1763505614287,0.405504,3131.3,3130.4,0.4992]
[1763505614655,0.859204,3131.3,3130.4,0.4992]
[1763505615076,0.405504,3131.1,3130.3,0.1995]
[1763505615492,0.405504,3130.9,3130.2,0.4992]
[1763505615696,1.31249664,3130.9,3130.1,0.1995]
[1763505615988,0.405504,3130.7,3130.1,0.1995]
[1763505616494,0.859204,3130.7,3130.1,0.1995]
[1763505620317,0.859204,3130.7,3130.1,0.6987]
[1763505620916,1.05442366,3130.7,3130.1,0.6987]
[1763505622795,0.60072366,3130.7,3130.1,0.1995]
[1763505622994,0.405504,3130.7,3130.2,0.4602]
[1763505625087,0.405504,3131.0,3130.6,0.4937]
[1763505625281,0.405504,3131.0,3130.7,0.4937]
[1763505625795,0.405504,3131.1,3130.7,0.4937]
[1763505626201,0.405504,3131.1,3130.7,0.9539]
[1763505626509,0.879704,3131.1,3130.7,0.4937]
[1763505626710,0.405504,3131.1,3130.7,0.9539]
[1763505630630,0.405504,3131.1,3130.7,0.4937]
[1763505631017,0.405504,3131.1,3130.7,0.9539]
[1763505631833,0.405504,3131.1,3130.7,0.959]
[1763505632040,0.900204,3131.1,3130.7,0.4937]
[1763505633999,0.405504,3131.1,3130.7,0.959]
[1763505634409,0.405504,3131.1,3130.7,0.4937]
[1763505635037,0.900204,3131.1,3130.7,0.4937]
[1763505637867,0.90699264,3131.0,3130.7,0.4937]
[1763505638062,0.18071966,3130.9,3130.7,0.4937]
[1763505638758,0.18071966,3130.9,3130.7,0.9475]
[1763505639357,0.0955,3130.8,3130.0,0.001]
[1763505639520,0.405504,3130.7,3130.1,0.6465]
[1763505640222,1.76599664,3130.7,3130.0,0.001]
[1763505640555,0.001,3130.1,3130.0,0.001]
[1763505640956,0.860004,3130.1,3130.0,0.001]
[1763505652680,1.76699664,3130.1,3130.0,0.001]
[1763505656080,0.860004,3130.1,3130.0,0.001]
[1763505656678,0.406504,3130.1,3130.0,0.001]
[1763505660472,0.860004,3130.1,3130.0,0.001]
[1763505660678,1.03670366,3130.1,3130.0,0.001]
[1763505665403,0.58320366,3130.1,3130.0,0.001]
[1763505666604,0.406504,3130.1,3130.0,0.001]
[1763505666762,0.405504,3130.1,3130.0,0.9857]
[1763505668898,0.29975218,3130.5,3130.0,0.9857]
[1763505669063,0.29975218,3130.4,3130.1,0.6947]
[1763505669262,0.29975218,3130.3,3130.1,0.6947]
[1763505669497,0.405504,3130.4,3130.2,0.4962]
[1763505669661,0.29975218,3130.3,3130.2,0.9847]
[1763505669867,0.29975218,3130.3,3130.2,0.4962]
[1763505670084,0.405504,3130.5,3130.2,0.9847]
[1763505670290,0.30015563,3130.4,3130.2,0.4962]
[1763505670486,0.30015563,3130.3,3130.1,0.1985]
[1763505670693,0.405504,3130.5,3130.4,0.4885]
[1763505670889,5.58346203,3130.5,3130.4,0.4885]
[1763505671089,1.61262643,3130.5,3130.4,0.9847]
[1763505671290,0.894004,3131.0,3130.4,0.9847]
[1763505671503,0.405504,3130.8,3130.5,0.4962]
[1763505671827,4.87982824,3131.8,3130.9,0.4885]
[1763505672115,4.87982824,3131.8,3131.3,0.1985]
[1763505672116,0.29995136,3131.7,3131.3,0.1985]
[1763505672295,0.002,3131.8,3131.7,0.4885]
[1763505672683,0.002,3131.8,3131.7,0.9847]
[1763505716169,0.002,3131.8,3131.7,0.4885]
[1763505719298,0.0642,3131.8,3131.6,0.001]
[1763505719500,0.0665,3131.7,3131.6,0.001]
[1763505719798,0.5462,3131.7,3131.6,0.001]
[1763505720298,0.951704,3131.7,3131.6,0.001]
[1763505720469,1.55335722,3131.7,3131.6,0.001]
[1763505723537,1.55335722,3131.7,3131.0,0.001]
[1763505723538,0.0048,3131.4,3131.0,0.001]
[1763505723806,6.24882488,3131.1,3131.0,0.001]
[1763505724102,6.87370737,3131.1,3131.0,0.001]
[1763505724283,7.36080737,3131.1,3131.0,0.001]
[1763505725824,1.99587913,3131.1,3131.0,0.001]
[1763505726009,0.60165322,3131.7,3131.0,0.4511]
[1763505726207,0.002,3131.8,3131.0,0.4511]
[1763505726208,0.90899264,3131.8,3131.0,0.4511]
[1763505726412,0.405504,3131.7,3131.1,0.188]
[1763505726726,0.405504,3131.7,3131.1,0.6653]
[1763505726912,1.39409264,3131.8,3131.1,0.6653]
[1763505727236,0.405504,3131.7,3131.1,0.6653]
[1763505727432,1.09174649,3131.7,3131.1,0.6653]
[1763505727594,0.68624249,3131.7,3131.1,0.6653]
[1763505727793,0.90699264,3131.6,3131.1,0.6653]
[1763505728020,0.68624249,3131.7,3131.1,0.6653]
[1763505728899,1.17134249,3131.7,3131.1,0.6653]
[1763505729228,0.20803351,3131.6,3131.1,0.6653]
[1763505729726,0.69313351,3131.6,3131.1,0.6653]
[1763505733390,0.4851,3131.6,3131.1,0.6653]
[1763505747560,0.4871,3131.6,3131.1,0.6653]
[1763505750653,0.4871,3131.6,3131.2,0.4942]
[1763505751348,0.0652,3131.3,3131.0,0.001]
[1763505751651,0.0652,3131.1,3131.0,0.001]
[1763505751870,0.470704,3131.1,3131.0,0.001]
[1763505752088,1.5860662,3131.1,3131.0,0.001]
[1763505752470,1.88584291,3131.1,3131.0,0.001]
[1763505754375,1.5860662,3131.1,3131.0,0.001]
[1763505754685,1.8858043,3131.1,3131.0,0.001]
[1763505756588,1.8858043,3131.1,3130.4,0.001]
[1763505756776,0.0861,3130.5,3130.4,0.001]
[1763505756975,0.0861,3130.5,3129.7,0.467]
[1763505756976,0.405504,3130.4,3129.7,0.467]
[1763505757179,0.0073,3130.1,3129.7,0.467]
[1763505757566,0.0073,3130.1,3129.7,0.001]
[1763505757567,0.4638,3130.1,3129.7,0.001]
[1763505757972,0.869304,3130.1,3129.7,0.001]
[1763505758191,1.04693366,3130.1,3129.7,0.001]
[1763505758757,0.0853,3129.8,3129.4,0.001]
[1763505759092,0.0081,3129.7,3129.4,0.001]
[1763505759492,4.99302535,3129.7,3129.4,0.001]
[1763505759667,5.39852935,3129.7,3129.4,0.001]
[1763505759861,6.07473155,3129.7,3129.4,0.001]
[1763505760061,6.53123155,3129.7,3129.4,0.001]
[1763505761795,6.07473155,3129.7,3129.4,0.001]
[1763505761981,0.6762022,3129.7,3129.6,0.4877]
[1763505762301,0.36706552,3130.4,3129.6,0.9537]
[1763505762302,0.90699264,3130.4,3129.6,0.9537]
[1763505762498,0.405504,3130.3,3130.0,0.4867]
[1763505763014,0.90699264,3130.7,3130.2,0.4867]
[1763505763214,0.186,3130.8,3130.4,0.4867]
[1763505763515,0.0926,3130.2,3129.6,0.001]
[1763505763680,1.31249664,3129.9,3129.6,0.001]
[1763505763996,0.0926,3129.7,3129.6,0.001]
[1763505764200,0.498104,3129.7,3129.4,0.001]
[1763505764376,0.0045,3129.5,3129.4,0.001]
[1763505764778,0.461,3129.5,3129.4,0.001]
[1763505765713,0.0045,3129.5,3129.4,0.001]
[1763505765922,0.461,3129.5,3129.4,0.001]
[1763505768220,0.0045,3129.5,3129.4,0.001]
[1763505768724,0.461,3129.5,3129.4,0.001]
[1763505770225,0.0926,3129.5,3129.4,0.001]
[1763505772827,0.858304,3129.7,3129.4,0.001]
[1763505774897,0.862004,3129.7,3129.4,0.001]
[1763505776157,0.90699264,3129.6,3129.4,0.001]
[1763505776333,0.7679922,3129.5,3129.4,0.001]
[1763505781714,0.6753922,3129.5,3129.4,0.4877]
[1763505781915,0.90699264,3129.6,3129.4,0.001]
[1763505782161,0.0926,3129.5,3129.4,0.001]
[1763505782320,0.90699264,3129.6,3129.4,0.001]
[1763505782520,0.90699264,3129.6,3129.4,0.4877]
[1763505783040,0.90699264,3129.6,3129.4,0.001]
[1763505783238,0.6753922,3129.6,3129.4,0.001]
[1763505784114,0.6773922,3129.6,3129.4,0.001]
[1763505784517,0.002,3129.6,3129.4,0.001]
[1763505785214,0.002,3129.6,3129.5,0.4867]
[1763505785954,0.0946,3129.6,3129.4,0.001]
[1763505792957,2.0156,3129.6,3129.4,0.001]
[1763505793145,0.0946,3129.6,3129.4,0.001]
[1763505793346,0.7790822,3129.6,3129.4,0.001]
[1763505794475,0.6864822,3129.6,3129.5,0.4871]
[1763505794667,0.707788,3129.6,3129.5,0.4871]
[1763505794867,5.58822748,3129.6,3129.5,0.9664]
[1763505795248,5.58822748,3129.6,3129.5,0.4871]
[1763505795849,0.90699264,3129.5,3129.4,0.001]
[1763505796252,0.90699264,3129.5,3129.4,0.4881]
[1763505796471,0.90699264,3129.5,3129.4,0.9674]
[1763505796877,1.20728378,3129.5,3129.4,0.9674]
[1763505797087,1.2072857,3129.5,3129.4,0.9674]
[1763505797455,1.20729035,3129.5,3129.4,0.9674]
[1763505798446,0.90699264,3129.5,3129.4,0.9674]
[1763505798752,1.20729271,3129.5,3129.4,0.9674]
[1763505799385,0.90699264,3129.5,3129.4,0.4881]
[1763505799581,1.20730578,3129.5,3129.4,0.4881]
[1763505799774,1.20730578,3129.5,3129.4,0.9674]
[1763505800561,0.90699264,3129.5,3129.4,0.9674]
[1763505800880,1.39809664,3129.5,3129.4,0.001]
[1763505801084,2.01759025,3129.5,3129.4,0.001]
[1763505801401,2.47729025,3129.5,3129.4,0.001]
[1763505805008,2.01759025,3129.5,3129.4,0.001]
[1763505805185,2.47729025,3129.5,3129.4,0.001]
[1763505805493,1.99259025,3129.5,3129.4,0.001]
[1763505811014,0.002,3129.6,3129.4,0.9531]
[1763505811307,0.002,3129.6,3129.5,0.4996]
[1763505811509,0.30230048,3129.6,3129.5,0.9521]
[1763505812282,0.002,3129.6,3129.5,0.9521]
[1763505818302,0.002,3129.6,3129.5,0.9773]
[1763505820507,0.002,3129.6,3129.5,0.9783]
[1763505825262,0.002,3129.6,3129.5,1.01025398]
[1763505825551,0.002,3129.6,3129.5,1.59952333]
[1763505826813,0.002,3129.6,3129.5,1.56756935]
[1763505827836,0.002,3129.6,3129.5,0.9783]
[1763505828229,0.002,3129.6,3129.5,1.383804]
[1763505830839,0.002,3130.0,3129.5,2.29079664]
[1763505831051,0.002,3130.0,3129.9,6.65203612]
[1763505831646,0.002,3130.0,3129.9,7.12973612]
[1763505831814,0.002,3130.0,3129.9,7.9707509]
[1763505833956,0.002,3130.4,3130.0,1.31249664]
[1763505834158,0.002,3130.4,3130.2,6.84223612]
[1763505834325,0.002,3131.6,3130.3,1.31249664]
[1763505834519,0.002,3131.6,3131.0,0.4591]
[1763505835157,0.002,3131.6,3131.0,0.9368]
[1763505835535,0.002,3131.6,3131.0,1.0648256]
[1763505838759,0.4581,3131.5,3131.0,0.1280256]
[1763505838928,0.093,3131.1,3130.6,0.4777]
[1763505839356,0.093,3131.1,3130.7,0.90699264]
[1763505840077,0.5474,3131.1,3130.7,0.90699264]
[1763505840283,0.4544,3130.8,3130.7,0.90699264]
[1763505840793,0.002,3131.1,3130.7,0.90699264]
[1763505840943,0.091,3130.8,3130.2,0.1902]
[1763505841144,0.0045,3130.3,3130.0,0.1902]
[1763505841448,0.0901,3130.1,3129.6,0.1902]
[1763505841659,0.6404,3130.8,3129.6,0.84321144]
[1763505841660,0.0054,3130.0,3129.6,0.84321144]
[1763505841859,0.0054,3130.0,3129.6,0.6679]
[1763505842062,4.88043948,3130.4,3129.9,0.4591]
[1763505842264,1.36509264,3130.6,3129.9,0.4591]
[1763505842555,2.07503585,3130.6,3129.9,0.4591]
[1763505842877,1.61693585,3130.6,3129.9,0.4591]
[1763505843377,1.61693585,3130.6,3129.6,0.84321144]
[1763505843566,0.4508,3130.5,3129.6,0.84321144]
[1763505843750,0.4508,3130.5,3129.7,0.4777]
[1763505847453,0.0982,3129.8,3129.5,0.001]
[1763505848970,0.0982,3129.8,3129.5,0.63406112]
[1763505849783,0.0982,3129.8,3129.5,0.001]
[1763505851590,0.0982,3129.8,3129.5,0.483]
[1763505851893,0.0982,3129.8,3129.5,0.4381284]
[1763505852486,0.0982,3129.8,3129.4,0.001]
[1763505853991,0.0982,3129.8,3129.4,0.483]
[1763505855598,0.0982,3129.8,3129.5,0.001]
[1763505856404,0.0982,3129.8,3129.5,0.483]
[1763505857007,0.0982,3129.8,3129.5,0.001]
[1763505858303,0.0982,3129.8,3129.5,0.483]
[1763505865399,0.4791,3130.0,3129.5,0.483]
[1763505865635,0.90699264,3130.4,3129.5,0.483]
[1763505865824,0.458,3130.0,3129.5,0.483]
[1763505871827,0.458,3130.2,3129.5,0.483]
[1763505872957,0.002,3130.0,3129.5,0.483]
[1763505873404,0.46,3130.0,3129.5,0.483]
[1763505877344,0.46,3130.0,3129.5,0.4676]
[1763505878310,0.002,3130.0,3129.5,0.001]
[1763505878512,0.1089,3129.6,3129.5,0.001]
[1763505879908,0.4801,3129.8,3129.5,0.001]
[1763505880546,0.002,3130.0,3129.5,0.001]
[1763505880749,0.4858,3130.0,3129.5,0.001]
[1763505881850,0.4858,3130.0,3129.5,0.4676]
[1763505884150,0.4858,3130.0,3129.5,0.001]
[1763505888727,0.1089,3129.6,3129.5,0.001]
[1763505889628,0.002,3130.0,3129.5,0.9448]
[1763505889827,0.4858,3130.0,3129.6,0.4772]
[1763505890262,0.1089,3129.6,3129.5,0.001]
[1763505890971,0.589,3129.6,3129.5,0.001]
[1763505899676,0.1089,3129.6,3129.5,0.001]
[1763505900211,0.589,3129.6,3129.5,0.001]
[1763505904866,0.90899264,3130.0,3129.5,0.4782]
[1763505904867,0.002,3130.0,3129.5,0.4782]
[1763505905068,0.002,3130.0,3129.5,0.9448]
[1763505905470,0.002,3130.0,3129.6,0.4666]
[1763505907268,0.002,3130.0,3129.5,0.001]
[1763505907800,0.002,3130.0,3129.5,0.4648]
[1763505908297,0.002,3130.0,3129.5,0.001]
[1763505908510,0.002,3129.6,3129.5,0.001]
[1763505908670,0.0954,3129.6,3129.5,0.001]
[1763505909387,0.002,3129.6,3129.5,0.001]
[1763505910008,0.5909,3129.6,3129.5,0.001]
[1763505912028,0.0994,3129.6,3129.5,0.001]
[1763505912185,0.5909,3129.6,3129.5,0.001]
[1763505914403,0.0994,3129.6,3129.5,0.001]
[1763505915313,0.5909,3129.6,3129.5,0.001]
[1763505916496,0.0994,3129.6,3129.5,0.001]
[1763505916695,0.5909,3129.6,3129.5,0.001]
[1763505917112,1.22868363,3129.6,3129.5,0.001]
[1763505918385,0.73718363,3129.6,3129.5,0.001]
[1763505918945,1.22868363,3129.6,3129.5,0.001]
[1763505919112,0.002,3129.6,3129.5,0.4834]
[1763505919986,0.4696,3129.6,3129.5,0.001]
[1763505920900,0.002,3129.6,3129.5,0.001]
[1763505921784,0.88703737,3129.9,3129.5,0.001]
[1763505924021,1.33763737,3129.9,3129.5,0.001]
[1763505924328,0.62195811,3129.8,3129.5,0.001]
[1763505926227,0.88703737,3129.9,3129.5,0.001]
[1763505926228,0.88703737,3129.9,3129.7,0.46]
[1763505926733,0.88903737,3129.9,3129.7,0.46]
[1763505927614,0.88903737,3129.9,3129.8,0.9309]
[1763505927815,0.88903737,3129.9,3129.8,0.46]
[1763505928427,0.88903737,3129.9,3129.6,0.4709]
[1763505928733,0.88903737,3129.9,3129.5,0.001]
[1763505929231,0.88903737,3129.9,3129.5,0.4719]
[1763505929598,0.88903737,3129.9,3129.5,0.001]
[1763505930010,0.88903737,3129.9,3129.5,0.4719]
[1763505930224,0.88903737,3129.9,3129.6,0.4709]
[1763505933238,0.88903737,3129.9,3129.5,0.001]
[1763505933425,0.88903737,3129.9,3129.8,0.46]
[1763505933953,0.88903737,3129.9,3129.8,0.9309]
[1763505935836,0.002,3129.9,3129.8,0.9309]
[1763505938423,0.002,3129.9,3129.8,0.46]
[1763505938630,0.002,3129.9,3129.8,0.9112]
[1763505944736,0.002,3129.9,3129.8,0.9122]
[1763505947069,0.002,3129.9,3129.8,1.49141437]
[1763505953970,0.002,3129.9,3129.8,1.52336529]
[1763505957765,0.002,3129.9,3129.8,1.49141437]
[1763505958338,0.002,3129.9,3129.8,0.9122]
[1763505961852,0.002,3129.9,3129.8,0.94415092]
[1763505962477,0.002,3129.9,3129.8,0.9122]
[1763505963183,0.002,3129.9,3129.8,5.79214368]
[1763505963356,0.002,3129.9,3129.8,5.92020166]
[1763505963563,0.002,3129.9,3129.8,6.51222183]
[1763505965872,0.002,3129.9,3129.8,7.82471847]
[1763505969657,0.002,3129.9,3129.8,8.45176652]
[1763505976800,0.002,3129.9,3129.8,3.57182284]
[1763505979915,0.002,3129.9,3129.8,6.94082284]
[1763505980126,0.002,3129.9,3129.8,3.57182284]
[1763505980731,0.002,3129.9,3129.8,7.19914277]
[1763505980914,0.002,3129.9,3129.8,7.67854277]
[1763505981091,0.002,3129.9,3129.8,8.58553541]
[1763505981293,0.002,3129.9,3129.8,3.60002284]
[1763505986051,0.002,3129.9,3129.8,7.46002284]
[1763505992018,0.002,3129.9,3129.8,3.60002284]
[1763506005345,0.00022099,3129.9,3129.8,3.60002284]
[1763506006564,0.00022099,3129.9,3129.8,7.46002284]
[1763506013877,0.00022099,3129.9,3129.8,6.52062284]
[1763506014033,0.54932099,3129.9,3129.8,0.12905798]